bitfinex/quotes_SOLUSD_20260311
["timestamp","ask_amount","ask_price","bid_price","bid_amount"]
[1773198525938,0.77332449,85.844,85.824,0.83301582]
[1773198526235,0.77332449,85.844,85.82,3.12827794]
[1773198526236,0.77332449,85.844,85.825,62.03301582]
[1773198526738,0.77332449,85.88,85.831,0.83301582]
[1773198526921,0.77332449,85.859,85.831,0.83301582]
[1773198527635,0.77332449,85.849,85.831,0.83301582]
[1773198530442,0.77332449,85.849,85.832,11.65066641]
[1773198530741,0.77332449,85.849,85.831,0.83301582]
[1773198531944,0.77332449,85.849,85.813,29.13286747]
[1773198531945,0.77332449,85.849,85.824,0.76468907]
[1773198532843,0.80763288,85.847,85.824,0.76468907]
[1773198533042,0.80763288,85.845,85.825,61.2]
[1773198534156,0.80763288,85.845,85.826,0.76468907]
[1773198537848,11.64903778,85.844,85.826,0.76468907]
[1773198538032,0.80763288,85.843,85.827,61.2]
[1773198541059,0.80763288,85.843,85.828,61.2]
[1773198542455,0.80763288,85.856,85.831,0.76468907]
[1773198543954,0.80763288,85.856,85.833,0.76468907]
[1773198544172,0.80763288,85.856,85.835,0.76468907]
[1773198547163,0.80763288,85.856,85.837,0.76468907]
[1773198549961,12.45517815,85.855,85.837,0.76468907]
[1773198550148,12.45517815,85.855,85.839,0.76468907]
[1773198550352,0.80763288,85.854,85.838,61.2]
[1773198550541,12.45517815,85.855,85.838,61.2]
[1773198550749,0.80763288,85.854,85.838,61.2]
[1773198552340,0.80763288,85.854,85.839,0.76468907]
[1773198553142,0.80763288,85.854,85.84,0.76468907]
[1773198555366,0.80763288,85.854,85.839,61.2]
[1773198555563,0.80763288,85.854,85.839,61.96468907]
[1773198556060,0.80763288,85.854,85.839,0.76468907]
[1773198560062,12.42122969,85.859,85.839,0.76468907]
[1773198560267,0.77422705,85.858,85.839,0.76468907]
[1773198562067,0.77422705,85.858,85.839,61.96468907]
[1773198562252,0.77422705,85.858,85.84,0.82617192]
[1773198565049,0.77422705,85.858,85.84,61.2]
[1773198565273,0.77422705,85.858,85.841,0.82617192]
[1773198566771,0.77422705,85.849,85.81,3.12827794]
[1773198566958,0.77422705,85.849,85.826,61.2]
[1773198567158,0.77422705,85.837,85.8,3.12827794]
[1773198567358,0.77422705,85.829,85.8,3.12827794]
[1773198568761,0.77422705,85.829,85.802,11.65473998]
[1773198568962,0.77422705,85.829,85.803,0.55208257]
[1773198570074,0.77422705,85.829,85.804,11.65446832]
[1773198570374,0.77422705,85.829,85.805,0.5514517]
[1773198572656,0.77422705,85.829,85.806,11.65419667]
[1773198572857,0.77422705,85.829,85.807,0.55086517]
[1773198573881,0.77422705,85.829,85.81,3.12827794]
[1773198574202,0.77422705,85.829,85.812,0.55029517]
[1773198574772,0.77422705,85.829,85.813,11.65324601]
[1773198577076,0.77422705,85.829,85.814,55.80173957]
[1773198578780,0.77422705,85.829,85.814,56.35063461]
[1773198580378,0.77422705,85.829,85.815,55.80173957]
[1773198586182,0.77422705,85.829,85.816,55.80173957]
[1773198586869,0.77422705,85.829,85.816,67.45451322]
[1773198587074,0.75745309,85.837,85.817,0.54678266]
[1773198588482,29.11556395,85.865,85.821,0.79300147]
[1773198588687,29.11556395,85.865,85.823,0.79300147]
[1773198588688,3.12916535,85.86,85.823,0.79300147]
[1773198589267,3.12916535,85.85,85.823,0.79300147]
[1773198590600,0.78132373,85.847,85.824,0.78372776]
[1773198590881,0.78132373,85.847,85.826,0.78372776]
[1773198595191,0.78132373,85.845,85.826,56.58546733]
[1773198595398,0.78132373,85.851,85.828,0.78372776]
[1773198595579,3.91048908,85.85,85.828,0.78372776]
[1773198595775,0.78132373,85.859,85.831,0.78372776]
[1773198596203,0.78132373,85.87,85.841,0.78372776]
[1773198596380,0.78132373,85.884,85.862,0.78372776]
[1773198596586,0.78132373,85.908,85.871,0.78372776]
[1773198596792,0.78132373,85.899,85.871,0.78372776]
[1773198597181,11.64171459,85.898,85.872,11.64523942]
[1773198597380,0.78132373,85.897,85.872,12.42896718]
[1773198597678,0.78132373,85.897,85.873,0.78372776]
[1773198600400,0.78132373,85.897,85.875,0.78372776]
[1773198603902,0.78132373,85.897,85.877,0.78372776]
[1773198604226,0.78132373,85.897,85.877,55.80173957]
[1773198604410,0.78132373,85.906,85.881,0.78372776]
[1773198605286,11.64022395,85.909,85.872,11.64523942]
[1773198605287,0.78132373,85.899,85.872,11.64523942]
[1773198605801,0.78132373,85.899,85.874,11.6449682]
[1773198606190,0.78132373,85.897,85.874,11.6449682]
[1773198608387,0.78132373,85.897,85.875,0.78372776]
[1773198610095,0.78132373,85.897,85.876,55.80173957]
[1773198611487,0.78132373,85.897,85.876,56.58546733]
[1773198612689,0.78132373,85.897,85.877,0.78372776]
[1773198612889,11.64171459,85.898,85.878,0.78372776]
[1773198613083,3.12916535,85.91,85.881,0.78372776]
[1773198613290,11.63900463,85.918,85.891,0.78372776]
[1773198615018,40.73651621,85.918,85.882,0.78372776]
[1773198615209,0.78132373,85.917,85.882,0.78372776]
[1773198615400,0.78132373,85.909,85.882,0.78372776]
[1773198616299,0.78132373,85.917,85.891,0.78372776]
[1773198616690,0.78132373,85.917,85.881,11.64401904]
[1773198616895,0.78132373,85.917,85.882,0.78372776]
[1773198618115,0.78132373,85.915,85.884,0.78372776]
[1773198619293,0.78132373,85.915,85.886,0.78372776]
[1773198619824,0.82782455,85.909,85.885,55.80173957]
[1773198620015,0.82782455,85.907,85.885,55.80173957]
[1773198622193,0.82782455,85.907,85.869,29.11406215]
[1773198622194,0.82782455,85.899,85.873,0.77022398]
[1773198622503,0.82782455,85.899,85.869,0.77022398]
[1773198624598,0.82782455,85.899,85.83,3.12916535]
[1773198624599,0.82782455,85.879,85.857,0.77022398]
[1773198624906,0.82782455,85.879,85.852,12.41807274]
[1773198625814,0.82782455,85.879,85.853,0.77022398]
[1773198626911,0.82782455,85.877,85.855,0.77022398]
[1773198630006,0.82782455,85.875,85.855,0.77022398]
[1773198630330,0.82782455,85.875,85.857,0.77022398]
[1773198630538,3.12916535,85.89,85.861,0.77022398]
[1773198630819,103.8,85.937,85.86,3.12916535]
[1773198630820,0.82782455,85.902,85.871,0.77022398]
[1773198631601,0.82782455,85.889,85.866,0.77022398]
[1773198631806,0.82782455,85.888,85.868,0.77022398]
[1773198632796,0.82782455,85.886,85.868,0.77022398]
[1773198633201,0.82782455,85.886,85.862,0.77022398]
[1773198633499,0.82782455,85.886,85.861,55.80173957]
[1773198635216,0.82782455,85.884,85.862,0.77022398]
[1773198635624,11.64282055,85.89,85.862,0.77022398]
[1773198635927,11.64282055,85.89,85.871,0.77022398]
[1773198637726,11.64282055,85.89,85.863,0.81350845]
[1773198637727,0.80329405,85.889,85.863,0.81350845]
[1773198640226,0.80329405,85.887,85.865,0.81350845]
[1773198640726,0.80329405,85.887,85.865,12.45969723]
[1773198640911,0.80329405,85.887,85.866,0.81350845]
[1773198643224,0.80329405,85.887,85.868,0.81350845]
[1773198643927,0.80329405,85.887,85.869,0.81350845]
[1773198644318,0.80329405,85.886,85.869,0.81350845]
[1773198646220,0.80329405,85.884,85.869,0.81350845]
[1773198652241,0.80329405,85.884,85.869,56.61524802]
[1773198655236,0.80329405,85.884,85.86,3.12532664]
[1773198655237,0.8117572,85.879,85.85,3.12532664]
[1773198655542,0.8117572,85.879,85.851,0.77784129]
[1773198656326,0.8117572,85.869,85.85,61.2]
[1773198656544,0.8117572,85.869,85.847,0.77784129]
[1773198657020,11.64374788,85.883,85.851,0.77784129]
[1773198657224,0.8117572,85.882,85.853,0.77784129]
[1773198658841,0.8117572,85.879,85.853,0.77784129]
[1773198659638,0.8117572,85.877,85.853,0.77784129]
[1773198660934,0.8117572,85.869,85.847,0.77784129]
[1773198661136,0.8117572,85.869,85.846,11.64867907]
[1773198661325,0.8117572,85.869,85.846,12.42652036]
[1773198661526,0.8117572,85.869,85.847,0.77784129]
[1773198664270,32.23579496,85.88,85.847,0.77784129]
[1773198664271,12.45753909,85.868,85.847,0.77784129]
[1773198665135,0.8117572,85.867,85.847,0.77784129]
[1773198665735,11.64605315,85.866,85.847,0.77784129]
[1773198665941,0.8117572,85.865,85.847,0.77784129]
[1773198667730,11.64632442,85.864,85.847,0.77784129]
[1773198667951,0.8117572,85.863,85.847,0.77784129]
[1773198669152,0.8117572,85.859,85.78,0.46353929]
[1773198669353,3.12532664,85.86,85.78,0.46353929]
[1773198669354,3.12532664,85.84,85.813,0.77784129]
[1773198670054,3.12532664,85.83,85.802,0.77784129]
[1773198671362,0.80883618,85.827,85.803,11.65460415]
[1773198671556,0.80883618,85.827,85.804,0.77784129]
[1773198672460,0.80883618,85.827,85.798,11.65521759]
[1773198672658,0.80997648,85.819,85.792,0.77784129]
[1773198673642,0.81110857,85.809,85.781,0.77784129]
[1773198675661,0.8117572,85.808,85.783,0.77784129]
[1773198676965,0.8117572,85.789,85.77,0.2]
[1773198677757,0.8117572,85.787,85.77,0.2]
[1773198678066,11.65607315,85.793,85.771,0.77784129]
[1773198678249,0.8117572,85.798,85.772,0.77784129]
[1773198678649,0.8117572,85.796,85.772,0.77784129]
[1773198681665,0.81721851,85.789,85.77,0.2]
[1773198682670,0.81785739,85.779,85.77,0.2]
[1773198683364,0.81848661,85.787,85.77,0.2]
[1773198685071,0.81910617,85.785,85.77,0.2]
[1773198689775,3.94742942,85.79,85.771,0.79556026]
[1773198690970,12.4797495,85.789,85.771,0.79556026]
[1773198691165,11.65650607,85.789,85.771,0.79556026]
[1773198691370,12.4797495,85.789,85.771,0.79556026]
[1773198693850,11.65650607,85.789,85.771,0.79556026]
[1773198694297,0.82492035,85.788,85.761,0.79556026]
[1773198694467,0.82492035,85.788,85.766,0.79556026]
[1773198695859,11.65677783,85.787,85.766,0.79556026]
[1773198698062,3.12532664,85.78,85.766,0.79556026]
[1773198700772,11.65786497,85.779,85.766,0.79556026]
[1773198702293,11.65623433,85.791,85.766,0.79556026]
[1773198702464,11.65623433,85.791,85.768,0.80688521]
[1773198702465,3.12532664,85.79,85.768,0.80688521]
[1773198703983,11.65650607,85.789,85.768,0.80688521]
[1773198704787,11.65650607,85.789,85.77,0.80688521]
[1773198705766,12.45052563,85.799,85.77,0.80688521]
[1773198705964,12.45052563,85.799,85.772,0.80688521]
[1773198706573,11.6546566,85.803,85.772,0.80688521]
[1773198707363,0.79537814,85.799,85.772,0.80688521]
[1773198709091,12.44956718,85.807,85.774,0.80688521]
[1773198709308,12.44956718,85.807,85.775,0.80688521]
[1773198711294,12.44956718,85.807,85.777,0.80159645]
[1773198711793,0.79451149,85.806,85.777,0.80159645]
[1773198713291,3.1318191,85.8,85.777,0.80159645]
[1773198714495,3.1318191,85.8,85.779,0.80159645]
[1773198718081,11.65433249,85.805,85.78,11.65772907]
[1773198718282,11.65433249,85.805,85.781,0.80159645]
[1773198720195,11.65378922,85.809,85.781,0.80159645]
[1773198720396,11.65378922,85.809,85.783,0.80159645]
[1773198720608,11.65324385,85.814,85.783,0.80159645]
[1773198720780,12.44775534,85.814,85.783,0.80159645]
[1773198720981,0.79451149,85.809,85.783,0.80159645]
[1773198722202,3.1318191,85.8,85.783,0.80159645]
[1773198722583,0.79451149,85.801,85.784,0.80159645]
[1773198727100,0.79451149,85.806,85.785,11.6570496]
[1773198727305,0.79451149,85.806,85.786,0.80159645]
[1773198730801,0.79451149,85.806,85.788,0.80159645]
[1773198734112,11.65378922,85.809,85.788,0.80159645]
[1773198735100,12.44830071,85.809,85.788,0.80159645]
[1773198736321,12.44830071,85.809,85.78,3.1318191]
[1773198736322,12.44830071,85.809,85.79,0.80159645]
[1773198738301,0.79451149,85.814,85.79,0.80159645]
[1773198738501,0.79451149,85.812,85.792,0.80159645]
[1773198741627,0.83979024,85.816,85.792,0.80159645]
[1773198745410,11.65297442,85.815,85.792,0.80159645]
[1773198746219,12.49116532,85.815,85.792,0.80159645]
[1773198747608,0.83788478,85.814,85.792,0.80159645]
[1773198751321,11.65324601,85.813,85.792,0.80159645]
[1773198751619,0.83668234,85.812,85.792,0.80159645]
[1773198754346,11.65351761,85.811,85.792,0.80159645]
[1773198754824,0.83580257,85.816,85.794,0.80073225]
[1773198755921,0.83580257,85.816,85.796,0.80073225]
[1773198759836,7.39035041,85.821,85.801,0.78759832]
[1773198763432,7.39035041,85.821,85.803,0.78759832]
[1773198765730,7.39035041,85.821,85.805,0.78759832]
[1773198769831,7.39035041,85.821,85.807,0.7921329]
[1773198771516,0.60358061,85.821,85.819,0.7921329]
[1773198772019,0.60358061,85.821,85.807,0.7921329]
[1773198772730,11.6508866,85.831,85.807,0.7921329]
[1773198773034,11.6508866,85.831,85.809,0.7921329]
[1773198773240,0.79339541,85.834,85.811,0.7921329]
[1773198776118,0.79339541,85.829,85.811,0.7921329]
[1773198778540,12.4446048,85.828,85.811,0.7921329]
[1773198779522,0.79339541,85.827,85.811,0.7921329]
[1773198781054,0.79339541,85.825,85.811,0.7921329]
[1773198781231,0.79339541,85.825,85.805,0.7921329]
[1773198781540,3.12930876,85.82,85.774,165.2]
[1773198781748,3.12930876,85.81,85.781,0.7921329]
[1773198781917,0.79339541,85.809,85.781,0.7921329]
[1773198782427,0.79339541,85.819,85.801,0.7921329]
[1773198782631,0.79339541,85.825,85.801,0.7921329]
[1773198783528,11.65175242,85.824,85.801,0.7921329]
[1773198783738,0.79339541,85.823,85.801,0.7921329]
[1773198784740,0.79339541,85.821,85.801,0.7921329]
[1773198786147,11.65202395,85.822,85.802,0.7921329]
[1773198786338,0.79339541,85.825,85.802,0.7921329]
[1773198786541,11.65149105,85.826,85.802,0.7921329]
[1773198786849,11.65149105,85.826,85.804,0.7921329]
[1773198789649,0.79339541,85.827,85.804,0.7921329]
[1773198790348,0.79339541,85.827,85.806,0.7921329]
[1773198793541,11.65129442,85.828,85.811,0.7921329]
[1773198793844,0.79339541,85.827,85.811,0.7921329]
[1773198795550,0.79339541,85.825,85.801,11.65487581]
[1773198795746,0.79339541,85.825,85.793,0.7921329]
[1773198795939,0.79339541,85.819,85.793,0.7921329]
[1773198796852,0.79339541,85.819,85.794,11.65582674]
[1773198797349,0.79339541,85.819,85.781,11.65759317]
[1773198797561,0.79339541,85.817,85.784,0.7921329]
[1773198800458,0.81995799,85.815,85.791,0.81678863]
[1773198802353,0.81839838,85.813,85.791,0.81678863]
[1773198804662,0.81686098,85.811,85.781,0.81678863]
[1773198804959,40.78683633,85.812,85.782,0.81678863]
[1773198804960,0.81686098,85.809,85.782,0.81678863]
[1773198808451,3.12930876,85.81,85.784,0.81678863]
[1773198808452,0.81388324,85.807,85.784,0.81678863]
[1773198811475,0.81173754,85.805,85.784,0.81678863]
[1773198812167,0.81173754,85.805,85.785,11.6570496]
[1773198812473,0.81173754,85.805,85.786,0.81678863]
[1773198817872,0.80701177,85.803,85.786,0.81678863]
[1773198818066,0.80701177,85.803,85.778,0.83486497]
[1773198818365,0.80636927,85.799,85.778,0.83486497]
[1773198818768,0.80636927,85.799,85.771,0.83486497]
[1773198819151,0.80572351,85.797,85.772,0.83486497]
[1773198821888,0.80572351,85.797,85.773,11.65868047]
[1773198822072,0.80572351,85.797,85.774,0.83486497]
[1773198824269,0.80266128,85.795,85.774,0.83486497]
[1773198824967,0.80266128,85.795,85.775,11.65840862]
[1773198826054,11.6550402,85.8,85.776,0.83486497]
[1773198826365,3.12930876,85.81,85.778,0.83486497]
[1773198826366,0.80149012,85.805,85.778,0.83486497]
[1773198830370,0.79864346,85.803,85.774,0.79590581]
[1773198830574,0.79864346,85.799,85.774,0.79590581]
[1773198831766,0.79864346,85.799,85.775,0.79590581]
[1773198832571,0.79755116,85.808,85.777,0.79590581]
[1773198833275,0.79701339,85.799,85.77,0.79590581]
[1773198834261,0.79701339,85.799,85.771,0.79590581]
[1773198834661,0.79647232,85.797,85.773,0.79590581]
[1773198836478,11.65555503,85.796,85.773,0.79590581]
[1773198836682,11.65555503,85.796,85.775,0.79590581]
[1773198838381,0.7943994,85.795,85.775,0.79590581]
[1773198840167,0.79341403,85.799,85.777,0.79590581]
[1773198840372,0.79341403,85.807,85.777,0.79590581]
[1773198840780,0.79341403,85.807,85.781,0.79590581]
[1773198842683,11.65419667,85.806,85.781,0.79590581]
[1773198844286,11.65419667,85.806,85.782,11.65745727]
[1773198844463,0.79147499,85.829,85.791,0.79590581]
[1773198846365,0.79052907,85.832,85.801,0.79590581]
[1773198846569,12.44133122,85.831,85.801,0.79590581]
[1773198847088,11.65031055,85.835,85.811,0.79590581]
[1773198847883,12.44037892,85.835,85.811,0.79590581]
[1773198849569,0.78915296,85.834,85.811,0.79590581]
[1773198851587,11.65053068,85.833,85.811,0.79590581]
[1773198855874,0.78545697,85.833,85.811,0.79590581]
[1773198858796,0.78260204,85.842,85.813,0.79590581]
[1773198862488,0.77804934,85.84,85.815,0.774873]
[1773198863690,0.77717212,85.839,85.815,0.774873]
[1773198864490,0.77630549,85.837,85.815,0.774873]
[1773198864992,0.77630549,85.837,85.817,0.774873]
[1773198866393,0.77459413,85.835,85.817,0.774873]
[1773198866591,0.77459413,85.829,85.813,0.774873]
[1773198866987,0.77459413,85.829,85.808,0.774873]
[1773198867184,0.77459413,85.829,85.803,0.774873]
[1773198868389,0.77292817,85.828,85.805,0.774873]
[1773198869784,0.77292817,85.828,85.806,11.65419667]
[1773198869985,0.77292817,85.828,85.807,0.774873]
[1773198874192,0.76814325,85.826,85.807,0.774873]
[1773198874790,0.76814325,85.826,85.808,0.774873]
[1773198889831,0.83057448,85.819,85.791,11.65623433]
[1773198890025,0.83057448,85.809,85.767,11.65949607]
[1773198890212,0.83057448,85.809,85.77,32.27986126]
[1773198890731,0.83057448,85.809,85.78,3.132369]
[1773198891219,0.83057448,85.814,85.78,3.132369]
[1773198891802,3.132369,85.81,85.78,3.132369]
[1773198892018,3.96294348,85.81,85.782,0.7746814]
[1773198893724,3.96165055,85.81,85.782,0.7746814]
[1773198895528,0.83057448,85.828,85.801,0.7746814]
[1773198895832,0.83057448,85.827,85.801,0.7746814]
[1773198897015,0.83057448,85.829,85.801,0.7746814]
[1773198897821,0.83057448,85.829,85.802,11.65473998]
[1773198898029,0.83057448,85.829,85.803,0.7746814]
[1773198900020,0.83057448,85.827,85.805,0.7746814]
[1773198900421,0.83057448,85.819,85.796,0.7746814]
[1773198903432,0.83057448,85.817,85.796,0.7746814]
[1773198904931,0.83057448,85.817,85.797,0.7746814]
[1773198907440,0.83057448,85.817,85.798,0.7746814]
[1773198908722,11.65283863,85.816,85.798,0.7746814]
[1773198909124,0.83057448,85.817,85.798,0.7746814]
[1773198914352,0.83057448,85.809,85.777,11.65810337]
[1773198914534,0.83057448,85.799,85.778,0.7746814]
[1773198915449,0.83057448,85.789,85.766,44.01968461]
[1773198915753,0.83057448,85.779,85.763,0.7746814]
[1773198916832,3.13107607,85.79,85.763,0.7746814]
[1773198917344,11.65528333,85.798,85.763,0.7746814]
[1773198917750,3.13107607,85.79,85.765,0.7746814]
[1773198918855,0.75664744,85.789,85.765,0.7746814]
[1773198922445,0.75664744,85.789,85.767,0.76480959]
[1773198923352,0.75664744,85.789,85.769,0.76480959]
[1773198923856,0.75989731,85.788,85.769,0.76480959]
[1773198925555,0.76094508,85.793,85.771,0.76480959]
[1773198925753,3.13107607,85.8,85.771,0.76480959]
[1773198925936,11.65487581,85.801,85.771,0.76480959]
[1773198926262,12.41582089,85.801,85.771,0.76480959]
[1773198927736,12.41582089,85.801,85.77,3.13107607]
[1773198927737,0.76194395,85.805,85.772,11.65881639]
[1773198928042,0.76194395,85.805,85.773,0.76480959]
[1773198928942,11.65446832,85.804,85.775,0.76480959]
[1773198929161,12.4169189,85.804,85.775,0.76480959]
[1773198930659,12.4169189,85.804,85.781,0.76480959]
[1773198931160,0.76342493,85.803,85.782,0.76480959]
[1773198933357,0.76342493,85.803,85.783,11.65732138]
[1773198933551,0.76342493,85.803,85.784,0.76480959]
[1773198939762,0.76795736,85.813,85.786,0.75568763]
[1773198939954,0.76795736,85.809,85.786,0.75568763]
[1773198942019,0.76879637,85.815,85.788,0.75568763]
[1773198942159,0.76879637,85.821,85.791,0.75568763]
[1773198942468,0.76921265,85.819,85.791,0.75568763]
[1773198943575,0.76962777,85.817,85.791,0.75568763]
[1773198946382,0.77084152,85.815,85.791,0.75568763]
[1773198949174,0.82516129,85.809,85.781,11.65759317]
[1773198951276,0.78871316,85.807,85.784,0.7887588]
[1773198952386,0.78871316,85.799,85.78,0.7887588]
[1773198953572,0.78871316,85.799,85.782,0.7887588]
[1773198956077,0.78871316,85.805,85.783,11.65732138]
[1773198956279,0.78871316,85.81,85.784,0.7887588]
[1773198956474,0.78871316,85.809,85.784,0.7887588]
[1773198958498,0.78871316,85.807,85.784,0.7887588]
[1773198960701,0.78871316,85.805,85.78,0.7887588]
[1773198963706,3.13156121,85.8,85.78,0.7887588]
[1773198963888,0.78871316,85.799,85.78,0.7887588]
[1773198967787,0.78871316,85.797,85.78,0.7887588]
[1773198968510,0.78871316,85.795,85.765,0.7887588]
[1773198968691,0.78871316,85.795,85.771,0.7887588]
[1773198970814,46.60558759,85.827,85.761,29.15077949]
[1773198970815,0.78871316,85.789,85.768,11.65933996]
[1773198971305,0.78871316,85.789,85.763,11.65991511]
[1773198972193,0.78871316,85.789,85.764,0.7887588]
[1773198972396,0.78871316,85.789,85.766,0.7887588]
[1773198973790,0.78871316,85.789,85.768,0.7887588]
[1773198976119,0.78871316,85.789,85.77,0.7887588]
[1773198976294,0.78871316,85.793,85.77,0.7887588]
[1773198977800,0.78871316,85.793,85.772,0.7887588]
[1773198979306,11.65609847,85.792,85.772,0.7887588]
[1773198979528,12.43735159,85.792,85.772,0.7887588]
[1773198980717,0.78125312,85.791,85.772,0.7887588]
[1773198981714,0.78125312,85.789,85.76,11.86036223]
[1773198983621,11.65664195,85.788,85.762,11.66017583]
[1773198983815,0.78125312,85.787,85.763,0.80679716]
[1773198986196,0.78125312,85.787,85.764,11.65990392]
[1773198986519,0.78125312,85.787,85.765,0.80679716]
[1773198988400,0.78125312,85.787,85.767,0.80679716]
[1773198992618,0.78125312,85.785,85.761,11.66031179]
[1773198992824,0.78125312,85.779,85.761,11.66031179]
[1773198997730,0.78125312,85.779,85.76,0.2]
[1773199000109,0.79640177,85.777,85.76,0.2]
[1773199002133,3.13156121,85.79,85.762,0.84712343]
[1773199004125,0.79640177,85.787,85.76,0.2]
[1773199005137,0.79640177,85.785,85.76,0.2]
[1773199005841,0.79640177,85.785,85.761,0.84712343]
[1773199009556,0.84474666,85.783,85.761,0.84712343]
[1773199012230,0.84474666,85.781,85.761,0.84712343]
[1773199013613,0.84474666,85.779,85.761,0.84712343]
[1773199016713,0.84474666,85.788,85.763,0.817904]
[1773199018622,0.84474666,85.786,85.763,0.817904]
[1773199019024,3.13331323,85.78,85.763,0.817904]
[1773199019226,0.84474666,85.779,85.763,0.817904]
[1773199021524,12.50262389,85.779,85.763,0.817904]
[1773199021724,0.84474666,85.778,85.763,0.817904]
[1773199022616,0.84474666,85.782,85.763,0.817904]
[1773199024245,0.84474666,85.782,85.76,0.2]
[1773199024246,0.84474666,85.798,85.765,0.817904]
[1773199026241,0.84474666,85.796,85.767,0.817904]
[1773199027344,11.65569089,85.795,85.769,0.817904]
[1773199028616,0.84474666,85.795,85.77,11.65908825]
[1773199028820,0.84474666,85.795,85.771,0.817904]
[1773199033637,3.13331323,85.79,85.771,0.817904]
[1773199033837,3.97805989,85.79,85.771,0.817904]
[1773199034528,0.84474666,85.789,85.771,0.817904]
[1773199035637,0.84474666,85.789,85.772,11.65881639]
[1773199035941,0.84474666,85.789,85.773,0.817904]
[1773199044649,0.83836911,85.793,85.775,0.8013844]
[1773199046653,0.83836911,85.799,85.775,0.8013844]
[1773199046950,0.83836911,85.809,85.781,0.8013844]
[1773199048250,14.78700644,85.81,85.781,0.8013844]
[1773199048740,11.65369321,85.81,85.783,0.8013844]
[1773199048937,11.6528318,85.817,85.783,0.8013844]
[1773199049137,0.83836911,85.826,85.791,0.8013844]
[1773199049853,0.83836911,85.829,85.801,0.8013844]
[1773199051236,14.7842554,85.83,85.803,0.8013844]
[1773199051237,0.83836911,85.827,85.803,0.8013844]
[1773199051638,0.83836911,85.819,85.798,0.8013844]
[1773199054654,0.83836911,85.819,85.8,0.8013844]
[1773199055748,0.83836911,85.819,85.802,0.8013844]
[1773199056350,0.83836911,85.827,85.802,0.8013844]
[1773199060064,0.86450425,85.825,85.802,0.8013844]
[1773199060566,0.86450425,85.825,85.804,0.79558975]
[1773199064272,0.86450425,85.825,85.806,0.79558975]
[1773199065366,0.86450425,85.842,85.806,0.79558975]
[1773199065568,103.8,85.856,85.8,32.27052977]
[1773199065569,0.86450425,85.839,85.804,0.79558975]
[1773199065770,3.13331323,85.83,85.804,0.79558975]
[1773199065974,0.86450425,85.829,85.804,0.79558975]
[1773199066558,0.86450425,85.819,85.8,0.79558975]
[1773199068079,0.86450425,85.817,85.792,0.79558975]
[1773199069478,0.87830461,85.809,85.774,0.80545457]
[1773199069774,0.87830461,85.809,85.775,0.80545457]
[1773199071778,0.87830461,85.807,85.781,0.80545457]
[1773199072575,0.87830461,85.799,85.777,0.80545457]
[1773199073476,0.87830461,85.799,85.773,0.80545457]
[1773199073881,0.87830461,85.797,85.773,0.80545457]
[1773199074778,0.87830461,85.797,85.773,12.46404701]
[1773199074981,0.87830461,85.797,85.774,0.80545457]
[1773199078059,0.87830461,85.797,85.775,11.65840862]
[1773199078257,0.87830461,85.797,85.776,0.80545457]
[1773199080983,0.87830461,85.789,85.76,0.2]
[1773199081174,0.87830461,85.769,85.751,0.80545457]
[1773199081365,0.87830461,85.769,85.75,0.1]
[1773199081366,4.01059296,85.76,85.75,0.1]
[1773199081562,0.87830461,85.759,85.75,0.1]
[1773199082459,0.87830461,85.759,85.741,12.46838968]
[1773199084387,0.87830461,85.759,85.741,0.80545457]
[1773199084689,0.87830461,85.749,85.73,0.1]
[1773199084985,0.87830461,85.749,85.73,0.90545457]
[1773199085778,0.87830461,85.749,85.733,0.80545457]
[1773199086782,0.87830461,85.739,85.721,11.66575284]
[1773199088987,0.87830461,85.729,85.712,11.66691318]
[1773199090989,0.87830461,85.729,85.714,12.47216012]
[1773199091383,0.87830461,85.729,85.714,0.80545457]
[1773199091580,4.01059296,85.72,85.71,0.1]
[1773199091792,0.87830461,85.72,85.71,0.1]
[1773199091979,3.13228835,85.73,85.71,0.1]
[1773199091980,0.87830461,85.729,85.71,0.1]
[1773199092287,11.66466423,85.729,85.71,0.1]
[1773199092491,0.87830461,85.728,85.71,0.1]
[1773199092787,0.87830461,85.721,85.71,0.1]
[1773199092971,3.13228835,85.73,85.71,0.90545457]
[1773199093292,0.87830461,85.735,85.71,0.90545457]
[1773199093493,3.13228835,85.73,85.71,0.90545457]
[1773199093897,3.13228835,85.74,85.71,0.90545457]
[1773199094084,0.87830461,85.739,85.71,0.90545457]
[1773199095676,0.87830461,85.729,85.71,0.1]
[1773199096490,0.87830461,85.729,85.71,0.90545457]
[1773199097393,0.87830461,85.729,85.712,0.80545457]
[1773199097591,3.13228835,85.73,85.712,0.80545457]
[1773199101200,3.98070474,85.73,85.712,0.80545457]
[1773199101700,0.84841639,85.729,85.712,0.80545457]
[1773199101902,0.84841639,85.728,85.712,0.80545457]
[1773199103899,0.84841639,85.739,85.714,0.8462219]
[1773199106182,0.84841639,85.752,85.731,0.8462219]
[1773199106407,0.84841639,85.749,85.721,0.8462219]
[1773199107505,0.84841639,85.739,85.721,0.8462219]
[1773199109287,0.84841639,85.739,85.722,11.66561676]
[1773199109498,0.84841639,85.739,85.722,12.51183866]
[1773199109692,0.84841639,85.739,85.723,0.8462219]